Workbook

Sheet Моноблоки пот.серии ST
E3: 2020-04-01
A6: ПРАЙС - ЛИСТ - Моноблоки POLAIR серии ST( потолочное исполнение)
A8: Монобоки POLAIR серии ST предназначены для потолочного монтажа, что позволяет максимально использовать объем холодильной камеры. Во всех моделях используются герметичные поршневые насосы. Используемый хладагент R404A. В комплектацию моноблока входит дистационный пульт управления. Моноблоки заправлены хладагентом.
A19: Базовые цены с учетом НДС | C19: * Цена не учитывает стоимость логистических услуг
A20: Модель | B20: Хладагент | C20: Рабочий диапазон, ° С | D20: V холодильной камеры, куб.м | E20: Напряжение, В | F20: Цена, руб
A23: МM 109 ST | B23: R 404a | C23: -5 … +5 | D23: 1,3 - 9,8 | E23: 1/230/50 | F23: 45554
A24: МM 113 SТ | B24: R 404a | C24: -5 … +5 | D24: 4,0 - 14,0 | E24: 1/230/50 | F24: 47171
A25: МM 115 SТ | B25: R 404a | C25: -5 … +5 | D25: 6,0 - 21,0 | E25: 1/230/50 | F25: 63076
A26: МВ 109 SТ | B26: R 404a | C26: -20 ...-15 | D26: 4,2 - 8,2 | E26: 1/230/50 | F26: 61944
A27: МВ 214 SТ | B27: R 404a | C27: -20 ...-15 | D27: 8,0 - 13,0 | E27: 1/230/50 | F27: 86043
A30: Производитель оставляет за собой право частичного изменения технических характеристик оборудования
A31: без принципиальных изменений его эксплуатационных свойств

Sheet Сплит-системыSt
F3: 2019-01-01
B6: ПРАЙС - ЛИСТ - Сплит-системы POLAIR cерии Standard
B8: Сплит-система состоит из двух блоков: снаружи размещается компрессорно-конденсаторный агрегат, внутри камеры - воздухоохладитель. Наружный и внутренний блоки сплит-системы соединяются между собой медными трубками в теплоизоляции и кабелем питания и управления
B10: Базовые цены с учетом НДС
B11: Модель | C11: Хладагент | D11: Рабочий диапазон, ° С | E11: V холодильной камеры, куб.м | F11: Напряжение, В | G11: Цена, руб
B12: Компрессорно-конденсаторный блок и воздухоохладитель заправлены сухим азотом.
K13: Цена, Руб
B14: SM 109 S | C14: R 404a | D14: -5 … +10 | E14: 3 - 7,5 | F14: 220 | G14: 54184.0678 | K14: =L14*1.15 -> 45195 | L14: 39300
B15: SM 111 S | C15: R 404a | D15: -5 … +10 | E15: 3,5 - 8,0 | F15: 220 | G15: 57256.27119 | K15: =L15*1.15 -> 47725 | L15: 41500
B16: SM 113 S | C16: R 404a | D16: -5 … +10 | E16: 4 - 10,5 | F16: 220 | G16: 60031.52542 | K16: 51750 | L16: 45000
B17: SM 115 S | C17: R 404a | D17: -5 … +10 | E17: 5 - 12,0 | F17: 220 | G17: 70306.77966 | K17: 57270 | L17: 49800
B18: SM 218 S | C18: R 404a | D18: -5 … +10 | E18: 8,0 - 17,0 | F18: 220 | G18: 80030.84746 | K18: 64285 | L18: 55900
B19: SM 222 S | C19: R 404a | D19: -5 … +10 | E19: 10,5 - 22,5 | F19: 380 | G19: 87575.59322 | K19: 70610 | L19: 61400
B20: SM 226 S | C20: R 404a | D20: -5 … +10 | E20: 12,5 - 26 | F20: 380 | G20: 93918.30508 | K20: 78200 | L20: 68000
B21: SM 232 S | C21: R 404a | D21: -5 … +10 | E21: 25,8 - 42,5 | F21: 380 | G21: 120393.5593 | K21: 91655 | L21: 79700
B22: SM 337 S | C22: R 404a | D22: -5 … +10 | E22: 19,5 - 49,6 | F22: 380 | G22: 121891.5254
B23: SM 342 S | C23: R 404a | D23: -5 … +10 | E23: 24,2 - 56,4 | F23: 380 | G23: 137871.8644
B24: SB 108 S | C24: R 404a | D24: -25 ...-15 | E24: 2,0 - 6,5 | F24: 220 | G24: 69547.11864 | K24: 57615 | L24: 50100
B25: SB 109 S | C25: R 404a | D25: -25 ...-15 | E25: 2,6 - 8,7 | F25: 220 | G25: 76694.23729 | K25: 64745 | L25: 56300
B26: SB 211 S | C26: R 404a | D26: -25 ...-15 | E26: 4,,7 - 13,4 | F26: 220 | G26: 81077.28814 | K26: 67045 | L26: 58300
B27: SB 214 S | C27: R 404a | D27: -25 ...-15 | E27: 6,0 - 17,0 | F27: 380 | G27: 88290.50847 | K27: 70610 | L27: 61400
B28: SB 216 S | C28: R 404a | D28: -25 ...-15 | E28: 7,2 - 21,1 | F28: 380 | G28: 93345.76271
B29: SB 328 S | C29: R 404a | D29: -25 ...-15 | E29: 18,0 - 33,0 | F29: 380 | G29: 132221.6949
B30: SB 331 S | C30: R 404a | D30: -25 ...-15 | E30: 19,3 - 38,0 | F30: 380 | G30: 157374.9153
K31: 74635 | L31: 64900
B37: Базовые цены c учётом НДС
B38: Дополнительные опции
B39: Зимний комплект* | G39: 12320 | K39: =L39*1.15 -> 8625 | L39: 7500
B40: Комплект дистанционного управления* | G40: 11540 | K40: =L40*1.15 -> 5675.25 | L40: 4935

Sheet Сплит-системыProf
F3: 2019-01-01
B5: ПРАЙС - ЛИСТ - Сплит-системы POLAIR Professionale
B7: Компрессорно-конденсаторный блок, воздухоохладитель и соединительные трубки заправлены хладагентом. Усовершенствованный воздухоохладитель новой конструкции повышает эффек-тивность работы сплит-симтемы.
B9: Базовые цены с учетом НДС Все модели поставляются на заказ
B10: Модель | C10: Хладагент | D10: Рабочий диапазон, ° С | E10: V холодильной камеры, куб.м | F10: Напряжение, В | G10: Цена, Руб | L10: Цена, Руб.
B11: SM 109 P | C11: R 404a | D11: -5 … +10 | E11: 3 - 7,5 | F11: 220 | G11: 66224.74576 | L11: =M11*1.15 -> 49450 | M11: 43000
B12: SM 111 P | C12: R 404a | D12: -5 … +10 | E12: 3,5 - 8,0 | F12: 220 | G12: 69979.32203 | L12: =M12*1.15 -> 52210 | M12: 45400
B13: SM 113 P | C13: R 404a | D13: -5 … +10 | E13: 4 - 10,5 | F13: 220 | G13: 73371.86441 | L13: 56695 | M13: 49300
B14: SM 115 P | C14: R 404a | D14: -5 … +10 | E14: 5 - 12,0 | F14: 220 | G14: 85930.16949 | L14: 60375 | M14: 52500
B15: SM 218 P | C15: R 404a | D15: -5 … +10 | E15: 8,0 - 17,0 | F15: 220 | G15: 97816.27119 | L15: 67160 | M15: 58400
B16: SM 222 P | C16: R 404a | D16: -5 … +10 | E16: 10,5 - 22,5 | F16: 380 | G16: 107036.9492 | L16: 77395 | M16: 67300
B17: SM 226 P | C17: R 404a | D17: -5 … +10 | E17: 12,5 - 26 | F17: 380 | G17: 114789.1525 | L17: 85675 | M17: 74500
B18: SB 108 P | C18: R 404a | D18: -25 … -15 | E18: 2,0 - 6,5 | F18: 220 | G18: 85001.69492 | L18: 63135 | M18: 54900
B19: SB 109 P | C19: R 404a | D19: -25 … -15 | E19: 2,6 - 8,7 | F19: 220 | G19: 93737.28814 | L19: 70840 | M19: 61600
B20: SB 211 P | C20: R 404a | D20: -25 … -15 | E20: 4,,7 - 13,4 | F20: 220 | G20: 99094.57627 | L20: 73370 | M20: 63800
B21: SB 214 P | C21: R 404a | D21: -25 … -15 | E21: 6,0 - 17,0 | F21: 380 | G21: 109873.2203 | L21: 77395 | M21: 67300
B22: SB 216 P | C22: R 404a | D22: -25 … -15 | E22: 7,2 - 21,1 | F22: 380 | G22: 116164.0678 | L22: 81765 | M22: 71100
B23: Дополнительные опции ( без установки)
B24: Зимний комплект* | G24: 12320 | L24: =M24*1.15 -> 8625 | M24: 7500
Q25: -25 … -15
B26: Производитель оставляет за собой право частичного изменения технических характеристик оборудования без принципиальных изменений его профессиональных свойств.
B42: * Cкидки партнерам на данную опцию не предоставляются
B43: Производитель оставляет за собой право частичного изменения технических характеристик оборудования
B44: без принципиальных изменений его эксплуатационных свойств

Sheet Складские камеры-Standard 80
A1: 0
E3: 2019-01-01
B6: ПРАЙС-ЛИСТ КАМЕРЫ POLAIR Standard (80мм) СКЛАДСКИЕ ПОЗИЦИИ
B11: Базовые цены с учетом НДС
B12: Код | C12: Модель | D12: Размеры, мм | E12: Цена, Руб | G12: Цена, Руб
B13: 1070001 | C13: КХН-2,94 | D13: 1360*1360, h=2200 | E13: 54807 | G13: =H13*1.15 -> 45160.5 | H13: 39270
B14: 1070004 | C14: КХН-4,41 | D14: 1360*1960, h=2200 | E14: 65650 | G14: 53935 | H14: 46900
B15: 1070034 | C15: КХН-6,61 | D15: 1960*1960, h=2200 | E15: 76145 | G15: 62560 | H15: 54400
B16: 1070285 | C16: КХН-7,71 | D16: 1960*2260, h=2200 | E16: 85108 | G16: 72220 | H16: 62800
B17: 1070010 | C17: КХН-8,81 | D17: 1960*2560, h=2200 | E17: 89918 | G17: 73830 | H17: 64200
B18: 1070078 | C18: КХН-11,02 | D18: 1960*3160, h=2200 | E18: 103154 | G18: 84755 | H18: 73700
B19: 1070016 | C19: КХН-11,75 | D19: 2560*2560, h=2200 | E19: 104291 | G19: 85675 | H19: 74500
B50: Производитель оставляет за собой право частичного изменения технических характеристик оборудования без принципиальных изменений его эксплуатационных свойств

Sheet Камеры-Standard 80
G3: 2020-03-30
A4: Сборно-разборные холодильные камеры из сендвич-панелей с соединением ШИП-ПАЗ из жесткого ПВХ
G7: толщина панели 80 мм
A8: ПРАЙС-ЛИСТ - КАМЕРЫ POLAIR Standard (80мм) ИЗ СТАНДАРТНЫХ ПАНЕЛЕЙ
A9: Базовые цены с учетом НДС
A10: Внешние габариты | C10: Высота 2 200 мм | E10: Высота 2 460 мм | G10: Высота 2 720 мм
A11: Длина | B11: Ширина | C11: объём, м3 | D11: Цена, Руб. | E11: объём, м3 | F11: Цена, Руб. | G11: объём, м3 | H11: Цена, Руб.
A12: 1360 | B12: 1360 | C12: 2.94 | D12: 0 | E12: 3.31 | F12: 65703.3992 | G12: 3.69 | H12: 70330.16814
B13: 1660 | C13: 3.67 | D13: 68010.70308 | E13: 4.14 | F13: 72530.6068 | G13: 4.61 | H13: 77628.0266
B14: 1960 | C14: 4.41 | D14: 0 | E14: 4.97 | F14: 79358.32529 | G14: 5.53 | H14: 84925.88505
B15: 2260 | C15: 5.14 | D15: 80712.04786 | E15: 5.8 | F15: 86186.25456 | G15: 6.45 | H15: 92235.51424
B16: 2560 | C16: 5.88 | D16: 87079.93037 | E16: 6.62 | F16: 93024.15378 | G16: 7.37 | H16: 99533.37269
B17: 2860 | C17: 6.61 | D17: 93424.35892 | E17: 7.45 | F17: 99839.41192 | G17: 8.29 | H17: 106831.2311
B18: 3160 | C18: 7.34 | D18: 99768.78748 | E18: 8.28 | F18: 106666.4408 | G18: 9.22 | H18: 114129.0896
B19: 3460 | C19: 8.08 | D19: 106136.7575 | E19: 9.11 | F19: 113493.4697 | G19: 10.14 | H19: 121438.7188
B20: 3760 | C20: 8.81 | D20: 112481.1861 | E20: 9.94 | F20: 120320.4985 | G20: 11.06 | H20: 128724.8065
B21: 4060 | C21: 9.55 | D21: 118849.1561 | E21: 10.76 | F21: 127147.5274 | G21: 11.98 | H21: 136022.665
B22: 4360 | C22: 10.28 | D22: 125193.5847 | E22: 11.59 | F22: 133974.5563 | G22: 12.9 | H22: 143320.5234
B23: 4660 | C23: 11.02 | D23: 131561.5547 | E23: 12.42 | F23: 140872.2096 | G23: 13.82 | H23: 150618.3819
B24: 4960 | C24: 11.75 | D24: 137905.9833 | E24: 13.25 | F24: 147628.614 | G24: 14.75 | H24: 157928.011
B25: 5260 | C25: 12.48 | D25: 144262.1826 | E25: 14.08 | F25: 154455.6429 | G25: 15.67 | H25: 165225.8695
B26: 5560 | C26: 13.22 | D26: 150618.3819 | E26: 14.9 | F26: 161282.6718 | G26: 16.59 | H26: 172523.7279
A27: 1660 | B27: 1660 | C27: 4.59 | D27: 74956.06874 | E27: 5.17 | F27: 79946.86227 | G27: 5.76 | H27: 85526.19276
B28: 1960 | C28: 5.51 | D28: 81900.80501 | E28: 6.21 | F28: 87433.05255 | G28: 6.91 | H28: 93400.81744
B29: 2260 | C29: 6.43 | D29: 88821.9998 | E29: 7.25 | F29: 94766.22322 | G29: 8.06 | H29: 101275.4421
B30: 2560 | C30: 7.34 | D30: 95766.73607 | E30: 8.28 | F30: 102181.7891 | G30: 9.22 | H30: 105489.3668
B31: 2860 | C31: 8.26 | D31: 102699.7016 | E31: 9.31 | F31: 109585.5842 | G31: 10.37 | H31: 117048.233
B32: 3160 | C32: 9.18 | D32: 109644.4379 | E32: 10.35 | F32: 116989.3793 | G32: 11.52 | H32: 124922.8577
B33: 3460 | C33: 10.1 | D33: 116577.4034 | E33: 11.39 | F33: 124416.7159 | G33: 12.67 | H33: 132821.0238
B34: 3760 | C34: 11.02 | D34: 123522.1397 | E34: 12.42 | F34: 131820.511 | G34: 13.82 | H34: 140695.6485
B35: 4060 | C35: 11.93 | D35: 130466.8759 | E35: 13.46 | F35: 139236.0768 | G35: 14.98 | H35: 148593.8147
B36: 4360 | C36: 12.85 | D36: 137388.0707 | E36: 14.49 | F36: 146639.8719 | G36: 16.13 | H36: 156468.4394
B37: 4660 | C37: 13.77 | D37: 144332.807 | E37: 15.53 | F37: 154055.4378 | G37: 17.28 | H37: 164343.064
B38: 4960 | C38: 14.69 | D38: 151265.7725 | E38: 16.56 | F38: 161459.2329 | G38: 18.43 | H38: 169204.3794
B39: 5260 | C39: 15.61 | D39: 158210.5088 | E39: 17.59 | F39: 168874.7987 | G39: 19.58 | H39: 172241.2302
B40: 5560 | C40: 16.52 | D40: 165143.4743 | E40: 18.63 | F40: 176278.5938 | G40: 20.74 | H40: 176054.9498
A41: 1960 | B41: 1960 | C41: 6.61 | E41: 7.45 | F41: 95354.76019 | G41: 8.29 | H41: 97814.84473
B42: 2260 | C42: 7.71 | E42: 8.69 | F42: 103347.0923 | G42: 9.68 | H42: 110338.9115
B43: 2560 | C43: 8.81 | E43: 9.94 | F43: 111351.1951 | G43: 11.06 | H43: 118813.8439
B44: 2860 | C44: 9.91 | D44: 111190.7652 | E44: 11.18 | F44: 119331.7564 | G44: 12.44 | H44: 127265.2348
B45: 3160 | C45: 11.02 | E45: 12.42 | F45: 127371.1715 | G45: 13.82 | H45: 135740.1672
B46: 3460 | C46: 12.12 | D46: 127029.82 | E46: 13.66 | F46: 135339.9621 | G46: 15.21 | H46: 144203.3289
B47: 3760 | C47: 13.22 | D47: 134551.3225 | E47: 14.9 | F47: 143320.5234 | G47: 16.59 | H47: 152678.2613
B48: 4060 | C48: 14.32 | D48: 142072.825 | E48: 16.15 | F48: 151324.6262 | G48: 17.97 | H48: 161141.4229
B49: 4360 | C49: 15.42 | D49: 149594.3275 | E49: 17.39 | F49: 159305.1876 | G49: 19.35 | H49: 165178.7865
B50: 4660 | C50: 16.52 | D50: 157115.83 | E50: 18.63 | F50: 164966.9132 | G50: 20.74 | H50: 166909.0852
B51: 4960 | C51: 17.63 | D51: 164637.3325 | E51: 19.87 | F51: 167309.2904 | G51: 22.12 | H51: 170593.3267
B52: 5260 | C52: 18.73 | D52: 172158.835 | E52: 21.11 | F52: 170428.5363 | G52: 23.5 | H52: 175513.4958
B53: 5560 | C53: 19.83 | D53: 179680.3375 | E53: 22.36 | F53: 172170.6058 | G53: 24.88 | H53: 183129.1642
A54: 2260 | B54: 2260 | C54: 9 | D54: 105042.0787 | E54: 10.14 | F54: 111916.1906 | G54: 11.29 | H54: 114776.4803
B55: 2560 | C55: 10.28 | D55: 113152.1182 | E55: 11.59 | F55: 120497.0596 | G55: 12.9 | H55: 128430.538
B56: 2860 | C56: 11.57 | D56: 121262.1577 | E56: 13.04 | F56: 129077.9287 | G56: 14.52 | H56: 137494.0074
B57: 3160 | C57: 12.85 | D57: 129372.1972 | E57: 14.49 | F57: 137658.7977 | G57: 16.13 | H57: 146545.706
B58: 3460 | C58: 14.14 | D58: 137458.6952 | E58: 15.94 | F58: 146251.4375 | G58: 17.74 | H58: 155597.4046
B59: 3760 | C59: 15.42 | D59: 145568.7346 | E59: 17.39 | F59: 153478.6715 | G59: 19.35 | H59: 159222.7924
B60: 4060 | C60: 16.71 | D60: 153678.7741 | E60: 18.84 | F60: 159340.4998 | G60: 20.97 | H60: 160388.0956
B61: 4360 | C61: 17.99 | D61: 161788.8136 | E61: 20.29 | F61: 162518.5994 | G61: 22.58 | H61: 164472.5422
B62: 4660 | C62: 19.28 | D62: 164437.23 | E62: 21.73 | F62: 164755.0399 | G62: 24.19 | H62: 172617.8939
B63: 4960 | C63: 20.56 | D63: 167497.6222 | E63: 23.18 | F63: 170228.4338 | G63: 25.8 | H63: 180763.2456
B64: 5260 | C64: 21.85 | D64: 169651.6675 | E64: 24.63 | F64: 177950.0388 | G64: 27.42 | H64: 188908.5972
B65: 5560 | C65: 23.13 | D65: 174795.4807 | E65: 26.08 | F65: 185659.8732 | G65: 29.03 | H65: 197065.7197
A66: 2560 | B66: 2560 | C66: 11.75 | E66: 13.25 | F66: 124251.9255 | G66: 14.75 | H66: 131314.3692
B67: 2860 | C67: 13.22 | D67: 130525.7296 | E67: 14.9 | F67: 138824.1009 | G67: 16.59 | H67: 147711.0092
B68: 3160 | C68: 14.69 | D68: 139224.3061 | E68: 16.56 | F68: 147993.507 | G68: 18.43 | H68: 153290.3397
B69: 3460 | C69: 16.16 | D69: 147911.1118 | E69: 18.22 | F69: 157162.913 | G69: 20.28 | H69: 155703.3413
B70: 3760 | C70: 17.63 | D70: 156597.9175 | E70: 19.87 | F70: 163613.2782 | G70: 22.12 | H70: 158952.0654
B71: 4060 | C71: 19.09 | D71: 159199.2509 | E71: 21.53 | F71: 166061.592 | G71: 23.96 | H71: 167638.8711
B72: 4360 | C72: 20.56 | D72: 164413.6885 | E72: 23.18 | F72: 168898.3402 | G72: 25.8 | H72: 176302.1353
B73: 4660 | C73: 22.03 | D73: 166532.4216 | E73: 24.84 | F73: 174430.5877 | G73: 27.65 | H73: 184977.1703
B74: 4960 | C74: 23.5 | D74: 172217.6887 | E74: 26.5 | F74: 182681.8761 | G74: 29.49 | H74: 193640.4345
B75: 5260 | C75: 24.97 | D75: 180045.2304 | E75: 28.15 | F75: 190933.1644 | G75: 31.33 | H75: 202315.4695
B76: 5560 | C76: 26.44 | D76: 187872.7722 | E76: 29.81 | F76: 199172.682 | G76: 33.18 | H76: 210990.5044
A77: 2860 | B77: 2860 | C77: 14.87 | D77: 150417.1022 | E77: 16.767 | F77: 159194.5426 | G77: 18.6624 | H77: 168542.8639
B78: 3160 | C78: 16.52 | D78: 160805.9568 | E78: 18.63 | F78: 170055.4039 | G78: 20.736 | H78: 161888.8649
B79: 3460 | C79: 18.18 | D79: 171194.8115 | E79: 20.493 | F79: 162824.6387 | G79: 22.8096 | H79: 172088.2106
B80: 3760 | C80: 19.83 | D80: 181583.6661 | E80: 22.356 | F80: 172600.2378 | G80: 24.8832 | H80: 182288.7334
B81: 4060 | C81: 21.48 | D81: 172774.4447 | E81: 24.219 | F81: 182374.6598 | G81: 26.9568 | H81: 192488.0791
B82: 4360 | C82: 23.13 | D82: 182123.943 | E82: 26.082 | F82: 192149.0818 | G82: 29.0304 | H82: 202688.6019
B83: 4660 | C83: 24.79 | D83: 191474.6184 | E83: 27.945 | F83: 201924.6809 | G83: 31.104 | H83: 212887.9476
B84: 4960 | C84: 26.44 | D84: 200824.1168 | E84: 29.808 | F84: 211699.1029 | G84: 33.1776 | H84: 223088.4704
B85: 5260 | C85: 28.09 | D85: 210173.6151 | E85: 31.671 | F85: 221473.525 | G85: 35.2512 | H85: 233287.8162
B86: 5560 | C86: 29.74 | D86: 219523.1135 | E86: 33.534 | F86: 231249.1241 | G86: 37.3248 | H86: 243488.3389
A87: 3160 | B87: 3160 | C87: 18.36 | D87: 171895.1705 | E87: 20.7 | F87: 163479.0918 | G87: 23.04 | H87: 172719.1222
B88: 3460 | C88: 20.2 | D88: 164686.7696 | E88: 22.77 | F88: 173860.8839 | G88: 25.344 | H88: 183550.5567
B89: 3760 | C89: 22.03 | D89: 174667.1796 | E89: 24.84 | F89: 184267.3947 | G89: 27.648 | H89: 194380.814
B90: 4060 | C90: 23.87 | D90: 184647.5896 | E90: 26.91 | F90: 194672.7283 | G90: 29.952 | H90: 205212.2484
B91: 4360 | C91: 25.7 | D91: 194627.9995 | E91: 28.98 | F91: 205078.062 | G91: 32.256 | H91: 216042.5058
B92: 4660 | C92: 27.54 | D92: 204609.5866 | E92: 31.05 | F92: 215484.5728 | G92: 34.56 | H92: 226873.9402
B93: 4960 | C93: 29.38 | D93: 214589.9966 | E93: 33.12 | F93: 225889.9064 | G93: 36.864 | H93: 237704.1976
B94: 5260 | C94: 31.21 | D94: 224570.4065 | E94: 35.19 | F94: 236295.2401 | G94: 39.168 | H94: 248534.4549
B95: 5560 | C95: 33.05 | D95: 234550.8165 | E95: 37.26 | F95: 246701.7508 | G95: 41.472 | H95: 259365.8894
A96: 3460 | B96: 3460 | C96: 22.2156 | D96: 175298.0912 | E96: 25.047 | F96: 184898.3063 | G96: 27.8784 | H96: 195011.7256
B97: 3760 | C97: 24.2352 | D97: 185909.4128 | E97: 27.324 | F97: 195934.5516 | G97: 30.4128 | H97: 206474.0717
B98: 4060 | C98: 26.2548 | D98: 196520.7344 | E98: 29.601 | F98: 206970.7969 | G98: 32.9472 | H98: 217935.2407
B99: 4360 | C99: 28.2744 | D99: 207132.056 | E99: 31.878 | F99: 218008.2193 | G99: 35.4816 | H99: 229396.4097
B100: 4660 | C100: 30.294 | D100: 217744.5547 | E100: 34.155 | F100: 229044.4646 | G100: 38.016 | H100: 240858.7558
B101: 4960 | C101: 32.3136 | D101: 228355.8763 | E101: 36.432 | F101: 240080.7099 | G101: 40.5504 | H101: 252319.9247
B102: 5260 | C102: 34.3332 | D102: 238967.1979 | E102: 38.709 | F102: 251116.9552 | G102: 43.0848 | H102: 263782.2708
B103: 5560 | C103: 36.3528 | D103: 249578.5195 | E103: 40.986 | F103: 262154.3776 | G103: 45.6192 | H103: 275243.4398
A104: 3760 | B104: 3760 | C104: 26.4384 | D104: 197151.6461 | E104: 29.808 | F104: 207601.7085 | G104: 33.1776 | H104: 218566.1523
B105: 4060 | C105: 28.6416 | D105: 208393.8793 | E105: 32.292 | F105: 219270.0426 | G105: 35.9424 | H105: 230658.233
B106: 4360 | C106: 30.8448 | D106: 219637.2896 | E106: 34.776 | F106: 230937.1995 | G106: 38.7072 | H106: 242751.4907
B107: 4660 | C107: 33.048 | D107: 230879.5229 | E107: 37.26 | F107: 242604.3564 | G107: 41.472 | H107: 254843.5713
B108: 4960 | C108: 35.2512 | D108: 242121.7561 | E108: 39.744 | F108: 254271.5133 | G108: 44.2368 | H108: 266936.829
B109: 5260 | C109: 37.4544 | D109: 253363.9893 | E109: 42.228 | F109: 265939.8474 | G109: 47.0016 | H109: 279028.9096
B110: 5560 | C110: 39.6576 | D110: 264606.2226 | E110: 44.712 | F110: 277607.0043 | G110: 49.7664 | H110: 291120.9902
A111: 4060 | B111: 4060 | C111: 31.0284 | D111: 220268.2013 | E111: 34.983 | F111: 231568.1111 | G111: 38.9376 | H111: 243382.4023
B112: 4360 | C112: 33.4152 | D112: 232141.3461 | E112: 37.674 | F112: 243866.1797 | G112: 41.9328 | H112: 256105.3946
B113: 4660 | C113: 35.802 | D113: 244014.491 | E113: 40.365 | F113: 256164.2483 | G113: 44.928 | H113: 268829.5639
B114: 4960 | C114: 38.1888 | D114: 256476.1728 | E114: 43.056 | F114: 268462.3168 | G114: 47.9232 | H114: 281552.5561
B115: 5260 | C115: 40.5756 | D115: 267760.7807 | E115: 45.747 | F115: 280526.1477 | G115: 50.9184 | H115: 294275.5484
B116: 5560 | C116: 42.9624 | D116: 279633.9256 | E116: 48.438 | F116: 293059.631 | G116: 53.9136 | H116: 306999.7177
A117: 4360 | B117: 4360 | C117: 35.9856 | D117: 244763.11 | E117: 40.572 | F117: 256795.1599 | G117: 45.1584 | H117: 269460.4755
B118: 4660 | C118: 38.556 | D118: 257149.4591 | E118: 43.47 | F118: 269724.1401 | G118: 48.384 | H118: 282814.3794
B119: 4960 | C119: 41.1264 | D119: 269653.5156 | E119: 46.368 | F119: 282654.2974 | G119: 51.6096 | H119: 296168.2833
B120: 5260 | C120: 43.6968 | D120: 282157.5722 | E120: 49.266 | F120: 295583.2776 | G120: 54.8352 | H120: 309523.3643
B121: 5560 | C121: 46.2672 | D121: 294661.6287 | E121: 52.164 | F121: 308512.2578 | G121: 58.0608 | H121: 322877.2682
A122: 4660 | B122: 4660 | C122: 41.31 | D122: 270284.4273 | E122: 46.575 | F122: 283285.209 | G122: 51.84 | H122: 296799.1949
B123: 4960 | C123: 44.064 | D123: 283419.3954 | E123: 49.68 | F123: 296845.1008 | G123: 55.296 | H123: 310785.1875
B124: 5260 | C124: 46.818 | D124: 296554.3636 | E124: 52.785 | F124: 310404.9927 | G124: 58.752 | H124: 324770.0031
B125: 5560 | C125: 49.572 | D125: 309689.3317 | E125: 55.89 | F125: 323964.8845 | G125: 62.208 | H125: 338754.8186
A126: 4960 | B126: 4960 | C126: 47.0016 | D126: 297185.2752 | E126: 52.992 | F126: 311035.9043 | G126: 58.9824 | H126: 325400.9147
B127: 5260 | C127: 49.9392 | D127: 310951.155 | E127: 56.304 | F127: 325226.7078 | G127: 62.6688 | H127: 340016.6419
B128: 5560 | C128: 52.8768 | D128: 324717.0347 | E128: 59.616 | F128: 339417.5112 | G128: 66.3552 | H128: 354632.369
A129: 5260 | B129: 5260 | C129: 53.0604 | D129: 325347.9464 | E129: 59.823 | F129: 340048.4229 | G129: 66.5856 | H129: 355263.2807
B130: 5560 | C130: 56.1816 | D130: 339744.7378 | E130: 63.342 | F130: 354870.138 | G130: 70.5024 | H130: 370511.0965
A131: 5560 | B131: 5560 | C131: 59.47 | D131: 354772.4408 | E131: 67.07 | F131: 370323.9418 | G131: 74.65 | H131: 386388.647
A132: Цены на оборудование ТМ «POLAIR», указанные в настоящем прайс-листе являются рекомендованными и могут отличаться от розничных цен у наших дилеров и региональных представителей.

Sheet Камеры-Professionale 100
I2: 2020-03-30
A4: Сборно-разборные холодильные камеры из сендвич-панелей с соединением ШИП-ПАЗ из жесткого ПВХ
I7: толщина панели 100 мм
A8: ПРАЙС-ЛИСТ - КАМЕРЫ POLAIR Professionale (100мм) ИЗ СТАНДАРТНЫХ ПАНЕЛЕЙ
A10: Базовые цены с учетом НДС
A11: Внешние габариты | C11: Высота 2 240 мм | F11: Высота 2 500 мм | I11: Высота 2 760 мм
A12: Длина | B12: Ширина | C12: объём, м3 | D12: Цена, Руб. | E12: Цена, Руб | F12: объём, м3 | G12: Цена, Руб. | H12: Цена, Руб | I12: объём, м3 | J12: Цена, Руб.
A13: 1400 | B13: 1400 | C13: 2.94 | D13: 70859.85142 | E13: 0 | F13: 3.31 | G13: 75709.39607 | H13: 0 | I13: 3.69 | J13: 81442.2
B14: 1700 | C14: 3.67 | D14: 78534.37353 | E14: 0 | F14: 4.14 | G14: 83925.3722 | H14: 0 | I14: 4.61 | J14: 90176.1
B15: 2000 | C15: 4.41 | D15: 86220.66639 | E15: 0 | F15: 4.97 | G15: 92129.57758 | H15: 0 | I15: 5.53 | J15: 95966.85
B16: 2300 | C16: 5.14 | D16: 93895.1885 | E16: 0 | F16: 5.8 | G16: 100333.783 | H16: 0 | I16: 6.45 | J16: 103559.4
B17: 2600 | C17: 5.88 | D17: 98497.54762 | E17: 0 | F17: 6.62 | G17: 104865.5177 | H17: 0 | I17: 7.37 | J17: 111150.9
B18: 2900 | C18: 6.61 | D18: 109267.7742 | E18: 0 | F18: 7.45 | G18: 116753.9645 | H18: 0 | I18: 8.29 | J18: 125111.7
B19: 3200 | C19: 7.34 | D19: 116942.2963 | E19: 0 | F19: 8.28 | G19: 124958.1699 | H19: 0 | I19: 9.22 | J19: 133845.6
B20: 3500 | C20: 8.08 | D20: 124628.5892 | E20: 0 | F20: 9.11 | G20: 133174.146 | H20: 0 | I20: 10.14 | J20: 142591.05
B21: 3800 | C21: 8.81 | D21: 132314.882 | E21: 0 | F21: 9.94 | G21: 141378.3514 | H21: 0 | I21: 11.06 | J21: 151324.95
B22: 4100 | C22: 9.55 | D22: 139989.4041 | E22: 0 | F22: 10.76 | G22: 149582.5568 | H22: 0 | I22: 11.98 | J22: 160046.25
B23: 4400 | C23: 10.28 | D23: 147675.697 | E23: 0 | F23: 11.59 | G23: 157798.5329 | H23: 0 | I23: 12.9 | J23: 168780.15
B24: 4700 | C24: 11.02 | D24: 155361.9898 | E24: 0 | F24: 12.42 | G24: 166002.7383 | H24: 0 | I24: 13.82 | J24: 177526.65
B25: 5000 | C25: 11.75 | D25: 163036.512 | E25: 0 | F25: 13.25 | G25: 174206.9437 | H25: 0 | I25: 14.75 | J25: 186260.55
B26: 5300 | C26: 12.48 | D26: 170722.8048 | E26: 0 | F26: 14.08 | G26: 182422.9198 | H26: 0 | I26: 15.67 | J26: 194994.45
B27: 5600 | C27: 13.22 | D27: 178409.0977 | E27: 0 | F27: 14.9 | G27: 190627.1252 | H27: 0 | I27: 16.59 | J27: 197689.8
A28: 1700 | B28: 1700 | C28: 4.59 | D28: 86985.76445 | E28: 0 | F28: 5.17 | G28: 92894.67565 | H28: 0 | I28: 5.76 | J28: 96437.25
B29: 2000 | C29: 5.51 | D29: 95425.38463 | E29: 0 | F29: 6.21 | G29: 98815.35759 | H29: 0 | I29: 6.91 | J29: 104618.85
B30: 2300 | C30: 6.43 | D30: 100121.9097 | E30: 0 | F30: 7.25 | G30: 106489.8797 | H30: 0 | I30: 8.06 | J30: 112775.25
B31: 2600 | C31: 7.34 | D31: 107313.8315 | E31: 0 | F31: 8.28 | G31: 114176.1726 | H31: 0 | I31: 9.22 | J31: 120932.7
B32: 2900 | C32: 8.26 | D32: 120756.0159 | E32: 0 | F32: 9.31 | G32: 128771.8895 | H32: 0 | I32: 10.37 | J32: 137659.2
B33: 3200 | C33: 9.18 | D33: 129195.6361 | E33: 0 | F33: 10.35 | G33: 137741.1929 | H33: 0 | I33: 11.52 | J33: 147157.5
B34: 3500 | C34: 10.1 | D34: 137647.027 | E34: 0 | F34: 11.39 | G34: 146710.4964 | H34: 0 | I34: 12.67 | J34: 156645.3
B35: 3800 | C35: 11.02 | D35: 146086.6472 | E35: 0 | F35: 12.42 | G35: 155679.7998 | H35: 0 | I35: 13.82 | J35: 166143.6
B36: 4100 | C36: 11.93 | D36: 154526.2673 | E36: 0 | F36: 13.46 | G36: 164649.1033 | H36: 0 | I36: 14.98 | J36: 175642.95
B37: 4400 | C37: 12.85 | D37: 162977.6583 | E37: 0 | F37: 14.49 | G37: 173618.4067 | H37: 0 | I37: 16.13 | J37: 185142.3
B38: 4700 | C38: 13.77 | D38: 171417.2784 | E38: 0 | F38: 15.53 | G38: 182587.7102 | H38: 0 | I38: 17.28 | J38: 188743.8
B39: 5000 | C39: 14.69 | D39: 179868.6694 | E39: 0 | F39: 16.56 | G39: 191557.0136 | H39: 0 | I39: 18.43 | J39: 197572.2
B40: 5300 | C40: 15.61 | D40: 188308.2895 | E40: 0 | F40: 17.59 | G40: 200526.3171 | H40: 0 | I40: 19.58 | J40: 206423.7
B41: 5600 | C41: 16.52 | D41: 196747.9097 | E41: 0 | F41: 18.63 | G41: 209495.6205 | H41: 0 | I41: 20.74 | J41: 215251.05
A42: 2000 | B42: 2000 | C42: 6.61 | D42: 100592.7392 | E42: 0 | F42: 7.45 | G42: 106984.2508 | H42: 0 | I42: 8.29 | J42: 113269.8
B43: 2300 | C43: 7.71 | D43: 108349.6565 | E43: 0 | F43: 8.69 | G43: 115223.7684 | H43: 0 | I43: 9.68 | J43: 121992.15
B44: 2600 | C44: 8.81 | D44: 116106.5738 | E44: 0 | F44: 9.94 | G44: 123463.286 | H44: 0 | I44: 11.06 | J44: 130714.5
B45: 2900 | C45: 9.91 | D45: 132244.2576 | E45: 0 | F45: 11.18 | G45: 140789.8144 | H45: 0 | I45: 12.44 | J45: 150206.7
B46: 3200 | C46: 11.02 | D46: 141448.9758 | E46: 0 | F46: 12.42 | G46: 150524.2159 | H46: 0 | I46: 13.82 | J46: 160458.9
B47: 3500 | C47: 12.12 | D47: 150653.6941 | E47: 0 | F47: 13.66 | G47: 160246.8467 | H47: 0 | I47: 15.21 | J47: 170722.65
B48: 3800 | C48: 13.22 | D48: 159858.4123 | E48: 0 | F48: 14.9 | G48: 169981.2482 | H48: 0 | I48: 16.59 | J48: 180974.85
B49: 4100 | C49: 14.32 | D49: 169074.9013 | E49: 0 | F49: 16.15 | G49: 179715.6497 | H49: 0 | I49: 17.97 | J49: 185235.75
B50: 4400 | C50: 15.42 | D50: 178279.6195 | E50: 0 | F50: 17.39 | G50: 189450.0513 | H50: 0 | I50: 19.35 | J50: 194746.65
B51: 4700 | C51: 16.52 | D51: 187484.3378 | E51: 0 | F51: 18.63 | G51: 199172.682 | H51: 0 | I51: 20.74 | J51: 204257.55
B52: 5000 | C52: 17.63 | D52: 196689.056 | E52: 0 | F52: 19.87 | G52: 202621.5087 | H52: 0 | I52: 22.12 | J52: 213791.55
B53: 5300 | C53: 18.73 | D53: 205893.7743 | E53: 0 | F53: 21.11 | G53: 211661.4366 | H53: 0 | I53: 23.5 | J53: 223302.45
B54: 5600 | C54: 19.83 | D54: 208459.7955 | E54: 0 | F54: 22.36 | G54: 220689.5937 | H54: 0 | I54: 24.88 | J54: 232824.9
A55: 2300 | B55: 2300 | C55: 9 | D55: 117036.4622 | E55: 0 | F55: 10.14 | G55: 124393.1744 | H55: 0 | I55: 11.29 | J55: 131643.75
B56: 2600 | C56: 10.28 | D56: 125417.2287 | E56: 0 | F56: 11.59 | G56: 133244.7704 | H56: 0 | I56: 12.9 | J56: 141013.95
B57: 2900 | C57: 11.57 | D57: 143732.4993 | E57: 0 | F57: 13.04 | G57: 152807.7394 | H57: 0 | I57: 14.52 | J57: 162742.65
B58: 3200 | C58: 12.85 | D58: 153702.3156 | E58: 0 | F58: 14.49 | G58: 163295.4682 | H58: 0 | I58: 16.13 | J58: 173759.25
B59: 3500 | C59: 14.14 | D59: 163672.1319 | E59: 0 | F59: 15.94 | G59: 173794.9678 | H59: 0 | I59: 17.74 | J59: 184788.45
B60: 3800 | C60: 15.42 | D60: 173641.9482 | E60: 0 | F60: 17.39 | G60: 184282.6966 | H60: 0 | I60: 19.35 | J60: 190074.15
B61: 4100 | C61: 16.71 | D61: 183611.7645 | E61: 0 | F61: 18.84 | G61: 194782.1962 | H61: 0 | I61: 20.97 | J61: 200349.45
B62: 4400 | C62: 17.99 | D62: 193569.8101 | E62: 0 | F62: 20.29 | G62: 205269.9251 | H62: 0 | I62: 22.58 | J62: 210601.65
B63: 4700 | C63: 19.28 | D63: 203539.6264 | E63: 0 | F63: 21.73 | G63: 215769.4246 | H63: 0 | I63: 24.19 | J63: 220866.45
B64: 5000 | C64: 20.56 | D64: 213509.4427 | E64: 0 | F64: 23.18 | G64: 219488.9783 | H64: 0 | I64: 25.8 | J64: 231141.75
B65: 5300 | C65: 21.85 | D65: 223479.259 | E65: 0 | F65: 24.63 | G65: 229258.692 | H65: 0 | I65: 27.42 | J65: 241393.95
B66: 5600 | C66: 23.13 | D66: 226327.7779 | E66: 0 | F66: 26.08 | G66: 239040.1765 | H66: 0 | I66: 29.03 | J66: 251670.3
A67: 2600 | B67: 2600 | C67: 11.75 | D67: 134221.7418 | E67: 0 | F67: 13.25 | G67: 142555.4253 | H67: 0 | I67: 14.75 | J67: 150771.6
B68: 2900 | C68: 13.22 | D68: 155232.5117 | E68: 0 | F68: 14.9 | G68: 164825.6644 | H68: 0 | I68: 16.59 | J68: 175290.15
B69: 3200 | C69: 14.69 | D69: 165955.6553 | E69: 0 | F69: 16.56 | G69: 176078.4913 | H69: 0 | I69: 18.43 | J69: 187072.2
B70: 3500 | C70: 16.16 | D70: 176690.5697 | E70: 0 | F70: 18.22 | G70: 187331.3182 | H70: 0 | I70: 20.28 | J70: 192627.75
B71: 3800 | C71: 17.63 | D71: 187413.7133 | E71: 0 | F71: 19.87 | G71: 198584.1451 | H71: 0 | I71: 22.12 | J71: 203575.05
B72: 4100 | C72: 19.09 | D72: 198148.6277 | E72: 0 | F72: 21.53 | G72: 209836.972 | H72: 0 | I72: 23.96 | J72: 214509.75
B73: 4400 | C73: 20.56 | D73: 208871.7713 | E73: 0 | F73: 23.18 | G73: 214298.0822 | H73: 0 | I73: 25.8 | J73: 225444.45
B74: 4700 | C74: 22.03 | D74: 213015.0716 | E74: 0 | F74: 24.84 | G74: 224750.4988 | H74: 0 | I74: 27.65 | J74: 236391.75
B75: 5000 | C75: 23.5 | D75: 222973.1172 | E75: 0 | F75: 26.5 | G75: 235202.9155 | H75: 0 | I75: 29.49 | J75: 247339.05
B76: 5300 | C76: 24.97 | D76: 232954.7042 | E76: 0 | F76: 28.15 | G76: 245667.1028 | H76: 0 | I76: 31.33 | J76: 258285.3
B77: 5600 | C77: 26.44 | D77: 242912.7498 | E77: 0 | F77: 29.81 | G77: 256119.5194 | H77: 0 | I77: 33.18 | J77: 269220
A78: 2900 | B78: 2900 | C78: =(B78/1000-0.2)*2.04*2.7 -> 14.8716 | D78: 166719.5763 | E78: 16.767 | F78: 16.767 | G78: 176838.881 | H78: 170745.25 | I78: 18.6624 | J78: 187831.35
B79: 3200 | C79: =(B79/1000-0.2)*2.04*2.7 -> 16.524 | D79: 178211.3492 | E79: 18.63 | F79: 18.63 | G79: 188855.6289 | H79: 182147.17 | I79: 20.736 | J79: 200374.65
B80: 3500 | C80: 18.1764 | D80: 189701.9451 | E80: 20.493 | F80: 20.493 | G80: 200872.3768 | H80: 193549.09 | I80: 22.8096 | J80: 212916.9
B81: 3800 | C81: 19.8288 | D81: 201192.5409 | E81: 22.356 | F81: 22.356 | G81: 212774.9485 | H81: 204951.01 | I81: 24.8832 | J81: 225460.2
B82: 4100 | C82: 21.4812 | D82: 212683.1368 | E82: 24.219 | F82: 24.219 | G82: 224905.8726 | H82: 216352.93 | I82: 26.9568 | J82: 238003.5
B83: 4400 | C83: 23.1336 | D83: 224174.9097 | E83: 26.082 | F83: 26.082 | G83: 236808.4443 | H83: 227754.85 | I83: 29.0304 | J83: 250545.75
B84: 4700 | C84: 24.786 | D84: 235665.5055 | E84: 27.945 | F84: 27.945 | G84: 248939.3684 | H84: 239156.77 | I84: 31.104 | J84: 263089.05
B85: 5000 | C85: 26.4384 | D85: 247156.1014 | E85: 29.808 | F85: 29.808 | G85: 260957.2933 | H85: 250558.69 | I85: 33.1776 | J85: 275632.35
B86: 5300 | C86: 28.0908 | D86: 258646.6972 | E86: 31.671 | F86: 31.671 | G86: 272974.0412 | H86: 261960.61 | I86: 35.2512 | J86: 288174.6
B87: 5600 | C87: 29.7432 | D87: 270138.4701 | E87: 33.534 | F87: 33.534 | G87: 284990.7891 | H87: 273362.53 | I87: 37.3248 | J87: 300717.9
A88: 3200 | B88: 3200 | C88: =(B88/1000-0.2)*2.04*3 -> 18.36 | D88: 198703.0295 | E88: 20.7 | F88: 20.7 | G88: 201633.9437 | H88: 194241.38 | I88: 23.04 | J88: 213679.2
B89: 3500 | C89: =(B89/1000-0.2)*2.04*3 -> 20.196 | D89: 202715.6746 | E89: 22.77 | F89: 22.77 | G89: 214412.2584 | H89: 206336.66 | I89: 25.344 | J89: 226984.8
B90: 3800 | C90: 22.032 | D90: 214969.0144 | E90: 24.84 | F90: 24.84 | G90: 227191.7502 | H90: 218430.87 | I90: 27.648 | J90: 240289.35
B91: 4100 | C91: 23.868 | D91: 227221.177 | E91: 26.91 | F91: 26.91 | G91: 239970.0649 | H91: 230525.08 | I91: 29.952 | J91: 253593.9
B92: 4400 | C92: 25.704 | D92: 239474.5168 | E92: 28.98 | F92: 28.98 | G92: 252748.3797 | H92: 242619.29 | I92: 32.256 | J92: 266898.45
B93: 4700 | C93: 27.54 | D93: 251726.6795 | E93: 31.05 | F93: 31.05 | G93: 265527.8715 | H93: 254713.5 | I93: 34.56 | J93: 280201.95
B94: 5000 | C94: 29.376 | D94: 263980.0192 | E94: 33.12 | F94: 33.12 | G94: 278306.1862 | H94: 266808.78 | I94: 36.864 | J94: 293508.6
B95: 5300 | C95: 31.212 | D95: 276232.1819 | E95: 35.19 | F95: 35.19 | G95: 291084.5009 | H95: 278902.99 | I95: 39.168 | J95: 306812.1
B96: 5600 | C96: 33.048 | D96: 288485.5217 | E96: 37.26 | F96: 37.26 | G96: 303863.9928 | H96: 290997.2 | I96: 41.472 | J96: 320116.65
A97: 3500 | B97: 3500 | C97: =(B97/1000-0.2)*2.04*3.3 -> 22.2156 | D97: 215730.5812 | E97: 25.047 | F97: 25.047 | G97: 227953.317 | H97: 219123.16 | I97: 27.8784 | J97: 241050.6
B98: 3800 | C98: =(B98/1000-0.2)*2.04*3.3 -> 24.2352 | D98: 228745.4878 | E98: 27.324 | F98: 27.324 | G98: 241493.1986 | H98: 231909.66 | I98: 30.4128 | J98: 255116.4
B99: 4100 | C99: 26.2548 | D99: 241759.2173 | E99: 29.601 | F99: 29.601 | G99: 255034.2573 | H99: 244697.23 | I99: 32.9472 | J99: 269184.3
B100: 4400 | C100: 28.2744 | D100: 254774.1239 | E100: 31.878 | F100: 31.878 | G100: 268574.1388 | H100: 257483.73 | I100: 35.4816 | J100: 283250.1
B101: 4700 | C101: 30.294 | D101: 267789.0305 | E101: 34.155 | F101: 34.155 | G101: 282115.1975 | H101: 270271.3 | I101: 38.016 | J101: 297316.95
B102: 5000 | C102: 32.3136 | D102: 280802.76 | E102: 36.432 | F102: 36.432 | G102: 295655.0791 | H102: 283057.8 | I102: 40.5504 | J102: 311382.75
B103: 5300 | C103: 34.3332 | D103: 293817.6666 | E103: 38.709 | F103: 38.709 | G103: 309196.1377 | H103: 295844.3 | I103: 43.0848 | J103: 325449.6
B104: 5600 | C104: 36.3528 | D104: 306832.5732 | E104: 40.986 | F104: 40.986 | G104: 322736.0193 | H104: 308631.87 | I104: 45.6192 | J104: 339516.45
A105: 3800 | B105: 3800 | C105: =(B105/1000-0.2)*2.04*3.6 -> 26.4384 | D105: 242521.9612 | E105: 29.808 | F105: 29.808 | G105: 255795.8241 | H105: 245389.52 | I105: 33.1776 | J105: 269945.55
B106: 4100 | C106: =(B106/1000-0.2)*2.04*3.6 -> 28.6416 | D106: 256297.2576 | E106: 32.292 | F106: 32.292 | G106: 270098.4496 | H106: 258869.38 | I106: 35.9424 | J106: 284774.7
B107: 4400 | C107: 30.8448 | D107: 270073.731 | E107: 34.776 | F107: 34.776 | G107: 284399.898 | H107: 272348.17 | I107: 38.7072 | J107: 299601.75
B108: 4700 | C108: 33.048 | D108: 283850.2045 | E108: 37.26 | F108: 37.26 | G108: 298702.5235 | H108: 285828.03 | I108: 41.472 | J108: 314430.9
B109: 5000 | C109: 35.2512 | D109: 297626.6779 | E109: 39.744 | F109: 39.744 | G109: 313005.149 | H109: 299306.82 | I109: 44.2368 | J109: 329257.95
B110: 5300 | C110: 37.4544 | D110: 311403.1514 | E110: 42.228 | F110: 42.228 | G110: 327306.5974 | H110: 312786.68 | I110: 47.0016 | J110: 344087.1
B111: 5600 | C111: 39.6576 | D111: 325178.4477 | E111: 44.712 | F111: 44.712 | G111: 341609.2229 | H111: 326265.47 | I111: 49.7664 | J111: 358914.15
A112: 4100 | B112: 4100 | C112: =(B112/1000-0.2)*2.04*3.9 -> 31.0284 | D112: 270835.2979 | E112: 34.983 | F112: 34.983 | G112: 285162.6419 | H112: 273040.46 | I112: 38.9376 | J112: 300363
B113: 4400 | C113: 33.4152 | D113: 285373.3382 | E113: 37.674 | F113: 37.674 | G113: 300225.6572 | H113: 287212.61 | I113: 41.9328 | J113: 315953.4
B114: 4700 | C114: 35.802 | D114: 299911.3784 | E114: 40.365 | F114: 40.365 | G114: 315289.8495 | H114: 301384.76 | I114: 44.928 | J114: 331543.8
B115: 5000 | C115: 38.1888 | D115: 314449.4187 | E115: 43.056 | F115: 43.056 | G115: 330354.0419 | H115: 315555.84 | I115: 47.9232 | J115: 347133.15
B116: 5300 | C116: 40.5756 | D116: 328987.459 | E116: 45.747 | F116: 45.747 | G116: 345418.2342 | H116: 328829.19 | I116: 50.9184 | J116: 361734.45
B117: 5600 | C117: 42.9624 | D117: 343525.4993 | E117: 48.438 | F117: 48.438 | G117: 360482.4265 | H117: 343900.14 | I117: 53.9136 | J117: 378313.95
A118: 4400 | B118: 4400 | C118: =(B118/1000-0.2)*2.04*4.2 -> 35.9856 | D118: 300672.9453 | E118: 40.572 | F118: 40.572 | G118: 316052.5934 | H118: 302077.05 | I118: 45.1584 | J118: 332306.1
B119: 4700 | C119: =(B119/1000-0.2)*2.04*4.2 -> 38.556 | D119: 315973.7295 | E119: 43.47 | F119: 43.47 | G119: 331878.3526 | H119: 316941.49 | I119: 48.384 | J119: 348657.75
B120: 5000 | C120: =(B120/1000-0.2)*2.04*4.2 -> 41.1264 | D120: 331273.3366 | E120: 46.368 | F120: 46.368 | G120: 347704.1118 | H120: 331805.93 | I120: 51.6096 | J120: 365009.4
B121: 5300 | C121: =(B121/1000-0.2)*2.04*4.2 -> 43.6968 | D121: 346572.9437 | E121: 49.266 | F121: 49.266 | G121: 363529.871 | H121: 346670.37 | I121: 54.8352 | J121: 381361.05
B122: 5600 | C122: =(B122/1000-0.2)*2.04*4.2 -> 46.2672 | D122: 361872.5509 | E122: 52.164 | F122: 52.164 | G122: 379355.6301 | H122: 361534.81 | I122: 58.0608 | J122: 397713.75
A123: 4700 | B123: 4700 | C123: =(B123/1000-0.2)*2.04*4.5 -> 41.31 | D123: 332034.9034 | E123: 46.575 | F123: 46.575 | G123: 348465.6786 | H123: 332498.22 | I123: 51.84 | J123: 365770.65
B124: 5000 | C124: =(B124/1000-0.2)*2.04*4.5 -> 44.064 | D124: 348096.0774 | E124: 49.68 | F124: 49.68 | G124: 365053.0046 | H124: 348054.95 | I124: 55.296 | J124: 382884.6
B125: 5300 | C125: =(B125/1000-0.2)*2.04*4.5 -> 46.818 | D125: 364158.4284 | E125: 52.785 | F125: 52.785 | G125: 381640.3307 | H125: 363611.68 | I125: 58.752 | J125: 399997.5
B126: 5600 | C126: =(B126/1000-0.2)*2.04*4.5 -> 49.572 | D126: 380219.6024 | E126: 55.89 | F126: 55.89 | G126: 398227.6567 | H126: 379168.41 | I126: 62.208 | J126: 417111.45
A127: 5000 | B127: 5000 | C127: =(B127/1000-0.2)*2.04*4.8 -> 47.0016 | D127: 364919.9953 | E127: 52.992 | F127: 52.992 | G127: 382401.8975 | H127: 364271.87 | I127: 58.9824 | J127: 400724.1
B128: 5300 | C128: =(B128/1000-0.2)*2.04*4.8 -> 49.9392 | D128: 381742.7361 | E128: 56.304 | F128: 56.304 | G128: 399751.9674 | H128: 380552.99 | I128: 62.6688 | J128: 418635
B129: 5600 | C129: =(B129/1000-0.2)*2.04*4.8 -> 52.8768 | D129: 398566.654 | E129: 59.616 | F129: 59.616 | G129: 417100.8603 | H129: 396803.08 | I129: 66.3552 | J129: 436511.25
A130: 5300 | B130: 5300 | C130: =(B130/1000-0.2)*2.04*5.1 -> 53.0604 | D130: 399328.2208 | E130: 59.823 | F130: 59.823 | G130: 417862.4271 | H130: 397495.37 | I130: 66.5856 | J130: 437272.5
B131: 5600 | C131: =(B131/1000-0.2)*2.04*5.1 -> 56.1816 | D131: 416913.7055 | E131: 63.342 | F131: 63.342 | G131: 435974.0639 | H131: 414436.68 | I131: 70.5024 | J131: 455908.95
A132: 5600 | B132: 5600 | C132: =(B132/1000-0.2)*2.04*5.4 -> 59.4864 | D132: 435260.7571 | E132: 67.07 | F132: 67.07 | G132: 454847.2675 | H132: 431556.68 | I132: 74.65 | J132: 474741.75
A134: Цены на оборудование ТМ «POLAIR», указанные в настоящем прайс-листе являются рекомендованными и могут отличаться от розничных цен у наших дилеров и региональных представителей.
